Cogmind - Beta 15 @@@ ROGUE MODE // 2025.07.16 @ 10:02:35 Player: Sirius Result: Destroyed by S-27 Virus with Autogun Performance ------------- Evolutions (6) 3000 Regions Visited (12) 2400 Robots Destroyed (95) 475 Value Destroyed (3596) 3596 Prototype IDs (30) 600 Alien Tech Used (0) 0 Bonus (2121) 2121 TOTAL SCORE: 12192 Bonus ------- High Alert Combat Kills 114 Registered with UFD 300 Met Optimus in HQ 500 Met Warlord at Base 500 MAIN.C Attacked Warlord 500 Warlord Defense Kills 220 Friendly Fire -13 Cogmind --------- Core Integrity 0/1150 Matter 300/300 Energy 98/100 System Corruption 0% Temperature Cool (0) Movement Core (50) Location -4/Upper Caves Parts ------- > --- POWER (3) -------- (None) > --- PROPULSION (5) --- (None) > --- UTILITY (8) ------ Improved Signal Interpreter 0b10 Decoder Chip [Scout] Hacking Suite > --- WEAPON (3) ------- (None) > --- INVENTORY (5) ---- Wheel Makeshift Salvage Targeting Computer Peak State ------------ > --- POWER ------------ Light Fission Core Light Antimatter Reactor > --- PROPULSION ------- Carbon-fiber Leg Carbon-fiber Leg Flexi-carbon Leg Armored Leg Myomer Leg > --- UTILITY ---------- Makeshift Sensor Array Advanced Signal Interpreter 0b10 Decoder Chip [Scout] Targeting Computer Improved Target Analyzer Hacking Suite System Shield > --- WEAPON ----------- Backup Laser III Backup Laser III Variable Charge Gun > --- INVENTORY -------- Light Angular Momentum Engine Armored Medium Treads Armored Leg Improved Medium Armor Plating [Rating: 78] Favorites ----------- Power Light Ion Engine Engine Light Ion Engine Power Core Light Fission Core Reactor Light Antimatter Reactor Propulsion Makeshift Leg Treads Medium Treads Leg Makeshift Leg Wheel Overtuned Huge Scrapsphere Hover Unit Improved Linear Gravjet Flight Unit Makeshift Flight Unit Utility Medium Storage Unit Device Advanced Heat Sink Storage Medium Storage Unit Processor Targeting Computer Hackware Hacking Suite Protection Makeshift Thermal Plating Weapon Subdweller Machine Gun Energy Gun Backup Laser III Energy Cannon Long-range Phase Cannon Ballistic Gun Subdweller Machine Gun Ballistic Cannon Gauss Cannon Launcher Grenade Launcher Special Weapon Improved Remote Datajack Piercing Weapon Makeshift Spear Build | -11 -10 -10 -9 -9 -6 -5 -5 -5 -5 -4 -4 -4 ------- Run | Yrd Mat Sub Rec Scr Fac Fac Upp Upp War Pro Fac Upp Slots Evolved 12 | . . . . . 8 2 . . . . 2 . Power 2 | . . . . . 1 . . . . . 1 . Propulsion 3 | . . . . . 2 1 . . . . . . Utility 6 | . . . . . 4 1 . . . . 1 . Weapon 1 | . . . . . 1 . . . . . . . Parts Attached 161 | 6 7 17 . . 58 8 15 10 10 6 21 3 Power 29 | 1 . 2 . . 12 2 2 3 2 1 3 1 Engine 15 | 1 . 2 . . 7 2 . . 1 1 1 . Core 13 | . . . . . 5 . 2 3 . . 2 1 Reactor 1 | . . . . . . . . . 1 . . . Propulsion 45 | 2 2 6 . . 12 . 3 2 7 1 8 2 Treads 6 | . . . . . . . 1 1 . . 2 2 Leg 31 | 2 2 6 . . 12 . 1 . 7 1 . . Wheel 2 | . . . . . . . . . . . 2 . Hover 1 | . . . . . . . . . . . 1 . Flight 5 | . . . . . . . 1 1 . . 3 . Utility 44 | 1 3 2 . . 17 3 6 4 . 2 6 . Device 12 | . 1 . . . 3 1 3 . . 1 3 . Storage 4 | 1 1 . . . 2 . . . . . . . Processor 13 | . 1 1 . . 5 . 1 2 . . 3 . Hackware 3 | . . . . . . . . 2 . 1 . . Protection 12 | . . 1 . . 7 2 2 . . . . . Artifact . | . . . . . . . . . . . . . Weapon 43 | 2 2 7 . . 17 3 4 1 1 2 4 . Energy Gun 14 | . 1 2 . . 5 1 3 1 . 1 . . Energy Cannon 2 | . . . . . . . 1 . . . 1 . Ballistic Gun 18 | 2 . 5 . . 6 1 . . . 1 3 . Ballistic Cannon 2 | . . . . . 2 . . . . . . . Launcher 4 | . 1 . . . 3 . . . . . . . Special Weapon 2 | . . . . . 1 1 . . . . . . Impact Weapon . | . . . . . . . . . . . . . Slashing Weapon . | . . . . . . . . . . . . . Piercing Weapon 1 | . . . . . . . . . 1 . . . Special Melee Weapon . | . . . . . . . . . . . . . Unidentified Prototypes 5 | . . . . . 2 . 1 . . . 2 . Corrupted Parts 3 | . . . . . 1 . 1 . . 1 . . System Corruption 7 | . . . . . 2 . 3 . . 2 . . Parts Lost 91 | . . 3 . . 32 . 18 . 3 11 15 9 Power 17 | . . . . . 7 . 2 . 1 3 2 2 Propulsion 24 | . . . . . 7 . 6 . 1 4 4 2 Utility 26 | . . . . . 9 . 6 . . 2 7 2 Weapon 24 | . . 3 . . 9 . 4 . 1 2 2 3 Highest Loss Streak 8 | . . 1 . . 8 . 6 . 3 5 7 3 To Critical Strikes . | . . . . . . . . . . . . . Average Backups 7 | 2 8 9 9 8 8 8 7 4 4 4 2 2 Power . | . 1 . 1 1 . 1 1 1 . . . . Propulsion 1 | 1 4 2 2 2 2 . . . . 1 1 1 Utility 2 | . 1 3 4 3 4 3 3 1 2 1 . 1 Weapon 1 | . 1 2 2 2 . 3 2 1 1 . . . Tool/Special . | . . . . . . . . . . . . . Unused Backups 30 | . 7 9 . 1 7 . 1 1 . 1 1 2 Power 3 | . 1 1 . . . . . 1 . . . . Propulsion 13 | . 4 5 . . 2 . . . . . 1 1 Utility 9 | . 1 1 . 1 3 . 1 . . 1 . 1 Weapon 5 | . 1 2 . . 2 . . . . . . . Tool/Special . | . . . . . . . . . . . . . Average Slot Usage (%) 87 | . 99 100 100 100 93 90 71 56 73 85 41 41 Engine 8 | . 14 14 14 14 7 5 4 . . . . . Core 2 | . . . . . 4 4 3 7 10 2 1 2 Leg 21 | . 27 28 28 28 25 23 11 . 4 24 2 . Device 2 | . . . . . 4 7 10 . . 4 2 4 Storage 8 | . 14 14 14 14 8 5 4 . . . . . Processor 12 | . 13 11 . . 13 13 12 26 29 22 15 10 Hackware 2 | . . . . . . . . 10 11 11 8 5 Protection 5 | . . 2 14 14 8 8 4 . . . . . Energy Gun 5 | . 13 8 . . 5 4 6 . 6 11 2 . Ballistic Gun 10 | . . 16 28 28 9 3 3 . . 1 3 3 Launcher 2 | . 13 3 . . . 5 2 . . . . . Peak Build Rating 78 | 6 9 21 21 21 62 71 73 47 68 78 66 65 Average Rating 34 | 4 8 12 21 20 53 65 54 39 50 64 31 49 On Entrance 32 | . 6 9 21 21 20 59 71 15 45 68 26 65 Naked Turns . | . . . . . . . . . . . . . Heaviest Build 68 | 14 21 24 23 23 56 68 68 14 23 33 37 34 Greatest Support 98 | 20 26 40 40 40 80 74 62 28 91 91 50 98 Greatest Overweight (x) 17 | . 1 1 . . 1 1 17 1 . 2 1 1 Average Overweight (x) . | . . . . . . . 1 . . . . . Largest Inventory Capacity 10 | 8 10 10 10 10 10 10 10 5 5 5 5 5 Average Capacity 8 | 6 9 10 10 10 10 10 9 5 5 5 5 5 Most Carried 10 | 6 10 10 10 10 10 10 10 5 5 5 5 5 Average Carried 7 | 2 8 9 10 9 8 9 8 4 4 4 2 2 Final Capacity 10 | 8 10 10 10 10 10 10 5 5 5 5 5 5 Final Carried 10 | 6 10 10 10 8 8 10 5 5 5 3 5 2 Class Distribution -------------------- 29% | Mutant 28% | Derelict-Mutant 13% | Scavenger-Gunner 12% | Scavenger-Mutant 4% | Scavenger-Tank 4% | Hacker-Mutant Dominant Class ---------------- Mutant | -10/Materials Mutant | -10/Subcaves Derelict-Mutant | -9/Recycling Derelict-Mutant | -9/Scraptown Scavenger-Gunner | -6/Factory Scavenger-Tank | -5/Factory Scavenger-Gunner | -5/Upper Caves Derelict-Mutant | -5/Upper Caves Derelict-Mutant | -5/Warlord Scavenger-Mutant | -4/Proximity Caves Hacker-Mutant | -4/Factory Mutant | -4/Upper Caves Resources | -11 -10 -10 -9 -9 -6 -5 -5 -5 -5 -4 -4 -4 ----------- Run | Yrd Mat Sub Rec Scr Fac Fac Upp Upp War Pro Fac Upp Matter Collected 4047 | 208 375 554 20 . 1583 120 375 208 232 105 239 28 Remotely 105 | . . . . . 105 . . . . . . . Salvage Created 3693 | . 340 485 50 . 1856 90 449 . 51 205 167 . Parts 186 | . 28 40 2 . 71 6 18 . . 13 8 . Haulers Intercepted 2 | . 1 . . . 1 . . . . . . . Recyclers Shooed 4 | . 2 . . . 2 . . . . . . . Parts Field Recycled . | . . . . . . . . . . . . . Retrieved Matter . | . . . . . . . . . . . . . Parts Self-Destructed 33 | . . 11 . . . . 10 . . 12 . . Prevented 12 | . . . . . . . 9 . . 1 . 2 Kills | -11 -10 -10 -9 -9 -6 -5 -5 -5 -5 -4 -4 -4 ------- Run | Yrd Mat Sub Rec Scr Fac Fac Upp Upp War Pro Fac Upp Combat Hostiles Destroyed 78 | . 12 13 1 . 29 1 10 . 1 6 5 . Guns 61 | . 4 13 1 . 22 1 9 . 1 6 4 . Cannons 4 | . . . . . 3 . 1 . . . . . AOE 11 | . 8 . . . 3 . . . . . . . Classes Destroyed 16 | . 6 2 1 . 5 . . . 1 1 . . Worker 5 | . 3 . . . 2 . . . . . . . Builder 3 | . 1 . . . 2 . . . . . . . Hauler 2 | . 1 . . . 1 . . . . . . . Recycler 3 | . . . . . 3 . . . . . . . Operator 1 | . . . . . 1 . . . . . . . Drone 1 | . . . . . . . . . . 1 . . Turret 2 | . . 2 . . . . . . . . . . Watcher 1 | . 1 . . . . . . . . . . . Swarmer 23 | . 6 2 . . 3 . 5 . . 3 4 . Grunt 24 | . 6 2 . . 13 . 3 . . . . . Duelist 1 | . . . . . 1 . . . . . . . Sentry 6 | . . . 1 . 3 1 . . . . 1 . Hunter 5 | . . . . . 5 . . . . . . . Programmer 8 | . . . . . 4 . 2 . . 2 . . Striker 1 | . . . . . . . . . 1 . . . Subdweller 9 | . . 9 . . . . . . . . . . Best Kill Streak 5 | . 4 2 1 . 5 1 4 . 1 3 2 . Combat Bots Only 4 | . 3 2 1 . 3 1 4 . 1 3 2 . Max Kills in Single Turn 3 | . 3 1 1 . 2 1 1 . 1 1 1 . Gunslinging . | . . . . . . . . . . . . . Exploded 3 | . 3 . . . 2 . . . . . . . Melee . | . . . . . . . . . . . . . Uniques/NPCs Destroyed . | . . . . . . . . . . . . . Combat | -11 -10 -10 -9 -9 -6 -5 -5 -5 -5 -4 -4 -4 -------- Run | Yrd Mat Sub Rec Scr Fac Fac Upp Upp War Pro Fac Upp Hostile Shots Fired 1329 | . 40 77 8 . 569 17 143 13 52 85 211 114 Missed 411 | . 17 25 5 . 168 8 41 6 17 27 66 31 Hits 918 | . 23 52 3 . 401 9 102 7 35 58 145 83 Melee 10 | . . . . . 1 . 9 . . . . . Projectile 908 | . 23 52 3 . 400 9 93 7 35 58 145 83 AOE 2 | . . 1 . . 1 . . . . . . . Critical Strikes 38 | . 2 1 . . 13 . 9 . 3 5 3 2 Damage Taken 16046 | . 229 984 46 . 5902 226 2158 137 898 1322 2451 1693 Core 2756 | . 18 176 13 . 463 25 380 77 213 237 702 452 Absorbed by Shields . | . . . . . . . . . . . . . Redirected to Shielding 183 | . . . . . 183 . . . . . . . Ignored by Resistances 83 | . . 14 2 . 67 . . . . . . . Regen/Repaired (Parts) 186 | . . . . . . . . . 186 . . . Core Remaining (%) 42 | 100 . . . 17 45 . . . . 6 . . Volleys Fired 365 | . 29 63 4 . 148 10 44 . 11 22 33 1 Largest 3 | . 2 2 2 . 3 3 3 . 2 3 1 3 Hottest 242 | . 86 88 55 . 183 128 242 . 80 103 40 151 Shots Fired 713 | . 47 122 8 . 303 20 104 . 22 51 33 3 Gun 627 | . 29 122 8 . 257 18 85 . 22 51 33 2 Cannon 50 | . . . . . 40 . 9 . . . . 1 Launcher 34 | . 18 . . . 5 1 10 . . . . . Special 2 | . . . . . 1 1 . . . . . . Kinetic 384 | . . 96 8 . 217 9 26 . . 6 20 2 Thermal 253 | . 29 26 . . 57 . 60 . 22 45 13 1 Explosive 25 | . 18 . . . 5 1 1 . . . . . Electromagnetic 49 | . . . . . 23 9 17 . . . . . Robot Hit Streak 23 | . 2 12 6 . 23 7 15 . 8 6 14 . Robot Miss Streak 12 | . 6 3 1 . 9 1 3 . 2 12 5 . Penetration Max 1 | . . . . . 1 1 1 . . . 1 . Secondary Targets 6 | . . 1 . . 3 . 1 . . 1 . . Max Gunslinging Chain 1 | . . 1 . . 1 . 1 . . 1 . . Shots Hit Robots 439 | . 15 63 6 . 208 14 67 . 15 26 25 . Core Hits 234 | . 26 25 2 . 122 7 23 . 4 14 11 . Critical Kills 3 | . . 1 . . 1 . 1 . . . . . Critical Parts Destroyed 10 | . . 1 . . 3 1 5 . . . . . Critical Strikes 21 | . 1 2 . . 8 1 9 . . . . . Burn 1 | . 1 . . . . . . . . . . . Destroy 16 | . . 2 . . 4 1 9 . . . . . Blast 4 | . . . . . 4 . . . . . . . Melee Attacks . | . . . . . . . . . . . . . Impact . | . . . . . . . . . . . . . Slashing . | . . . . . . . . . . . . . Piercing . | . . . . . . . . . . . . . Sneak Attacks . | . . . . . . . . . . . . . Combat Hostiles . | . . . . . . . . . . . . . Follow-up Attacks . | . . . . . . . . . . . . . Damage Inflicted 9904 | . 784 1190 107 . 5153 171 1357 . 216 387 539 . Guns 7235 | . 160 1190 107 . 3571 148 922 . 216 387 534 . Cannons 853 | . . . . . 660 . 193 . . . . . Explosions 1802 | . 624 . . . 913 23 242 . . . . . Melee . | . . . . . . . . . . . . . Ramming 14 | . . . . . 9 . . . . . 5 . Kinetic 4820 | . . 944 107 . 3003 59 196 . . 92 419 . Thermal 3198 | . 160 246 . . 1280 . 886 . 216 295 115 . Explosive 1370 | . 624 . . . 720 23 3 . . . . . Electromagnetic 502 | . . . . . 141 89 272 . . . . . Impact . | . . . . . . . . . . . . . Slashing . | . . . . . . . . . . . . . Piercing . | . . . . . . . . . . . . . Highest Corruption 12 | . . . . . 5 . 12 12 12 9 . . Average Corruption 5 | . . . . . 2 . 7 12 5 4 . . Corruption Purged . | . . . . . . . . . . . . . Corruption Blocked . | . . . . . . . . . . . . . Effects 79 | . . . . . 16 . 24 13 3 23 . . Message Errors 22 | . . . . . 3 . 6 9 . 4 . . Matter Fused 13 | . . . . . 1 . 4 . 1 7 . . Heat Flow Errors 9 | . . . . . 3 . 3 . 1 2 . . Energy Discharges 9 | . . . . . 1 . 2 2 . 4 . . Parts Rejected 1 | . . . . . . . . . . 1 . . Parts Fused 3 | . . . . . . . 1 . . 2 . . Data Loss (minor) 7 | . . . . . 1 . 3 1 1 1 . . Data Loss (major) 3 | . . . . . 1 . 1 1 . . . . Misfires 4 | . . . . . 1 . 2 . . 1 . . Alerts 3 | . . . . . 1 . 1 . . 1 . . Weapon Failures 5 | . . . . . 4 . 1 . . . . . Overload Shots . | . . . . . . . . . . . . . Overflow Damage 81 | . . . . . 76 . 5 . . . . . Projectiles . | . . . . . . . . . . . . . Explosions 81 | . . . . . 76 . 5 . . . . . Melee . | . . . . . . . . . . . . . Knockbacks 14 | . . . . . 14 . . . . . . . Impact 1 | . . . . . 1 . . . . . . . Kinetic 13 | . . . . . 13 . . . . . . . Secondary . | . . . . . . . . . . . . . Self-Inflicted Damage 364 | . 21 . . . 248 10 84 . . . 1 . Shots 9 | . 2 . . . 4 1 2 . . . . . Rammed 5 | . . . . . . . . . . . 5 . Targets Rammed 9 | . . . . . 4 . . . . . 5 . Kicked 4 | . . . . . 4 . . . . . . . Crushed . | . . . . . . . . . . . . . Highest Temperature 396 | . 134 17 36 . 392 21 396 . 247 331 2 330 Average Temperature 91 | . 38 6 21 . 121 12 97 . 43 52 2 139 Received Heat Transfer 3406 | . 48 228 9 . 1212 27 315 63 237 414 412 441 Effects 7 | . . . . . 5 . 1 . . 1 . . Shutdowns 2 | . . . . . 2 . . . . . . . Energy Bleed 1 | . . . . . . . 1 . . . . . Interference 1 | . . . . . 1 . . . . . . . Matter Decay 2 | . . . . . 1 . . . . 1 . . Short Circuit 1 | . . . . . 1 . . . . . . . Siege Activations . | . . . . . . . . . . . . . Martial Activations . | . . . . . . . . . . . . . Shielding Activations . | . . . . . . . . . . . . . Robots Disrupted . | . . . . . . . . . . . . . Combat Hostiles . | . . . . . . . . . . . . . Robots Corrupted . | . . . . . . . . . . . . . Combat Hostiles . | . . . . . . . . . . . . . Parts Fried 3 | . . . . . 1 1 1 . . . . . Impact Corruptions . | . . . . . . . . . . . . . Robots Melted 2 | . . . . . 1 . . . . . 1 . Combat Hostiles 2 | . . . . . 1 . . . . . 1 . Parts Melted 13 | . 2 1 . . 4 . 2 . . 3 1 . Heat Transferred 6377 | . 481 300 . . 2582 . 1312 . 592 777 333 . Parts Sabotaged . | . . . . . . . . . . . . . Parts Stolen . | . . . . . . . . . . . . . Parts Stripped . | . . . . . . . . . . . . . Power Chain Reactions 2 | . . . . . 1 . 1 . . . . . Alert | -11 -10 -10 -9 -9 -6 -5 -5 -5 -5 -4 -4 -4 ------- Run | Yrd Mat Sub Rec Scr Fac Fac Upp Upp War Pro Fac Upp Maximum Alert Level 3 | . . . . . 2 1 . . . . 3 . Low Security (%) 72 | 100 100 . 100 . 69 62 . . . . . . Level 1 13 | . . . . . 24 37 . . . . . . Level 2 9 | . . . . . 5 . . . . . 56 . Level 3 5 | . . . . . . . . . . . 43 . Level 4 . | . . . . . . . . . . . . . Level 5 . | . . . . . . . . . . . . . High Security . | . . . . . . . . . . . . . Max Security . | . . . . . . . . . . . . . Peak Influence 900 | . 163 . 77 . 532 257 . . . . 900 . Initial 900 | . . . 77 . . 257 . . . . 900 . Average 172 | . 64 . 19 . 126 191 . . . . 705 . Influence Increases 4075 | . 493 265 25 . 1258 68 325 90 50 190 1266 45 Destroy 0b10 Robot/C 1440 | . 240 120 20 . 580 20 200 . 20 100 140 . Destroy 0b10 Robot/NC 85 | . 30 . . . 45 . . . . 5 5 . Destroy Leader 276 | . 54 10 . . 152 10 20 . . 10 20 . Successful Hack 94 | . 19 . 5 . 62 8 . . . . . . Disable Machine 210 | . 30 . . . 165 . . . . . 15 . Destroy Structure 245 | . 90 . . . 89 30 . . . . 36 . Advance Influence 900 | . . . . . . . . . . . 900 . Partial Spotted 15 | . 15 . . . . . . . . . . . Lose Combat Pursuer 810 | . 15 135 . . 165 . 105 90 30 75 150 45 Influence Decreases 3995 | . 440 156 187 . 732 429 490 90 24 216 812 419 Entered New Map 637 | . . 26 85 . . 269 62 . . 26 . 169 Time Decay 2264 | . 440 120 102 . 432 160 331 90 24 143 262 160 Search Patrol Dispatched 300 | . . . . . . . . . . . 300 . Lost Part 674 | . . 10 . . 280 . 97 . . 47 150 90 Lost Ally 120 | . . . . . 20 . . . . . 100 . Squads Dispatched 21 | . 2 . . . 11 2 . . . . 6 . Investigation 5 | . 1 . . . 2 . . . . . 2 . Extermination 5 | . . . . . 4 . . . . . 1 . Reinforcement 11 | . 1 . . . 5 2 . . . . 3 . Assault . | . . . . . . . . . . . . . Garrison . | . . . . . . . . . . . . . Intercept . | . . . . . . . . . . . . . Searches Triggered 2 | . . . . . . . . . . . 2 . Construction Impeded 5 | . . . . . 2 2 . . . . 1 . Haulers Reinforced 1 | . . . . . 1 . . . . . . . Active Scanning Responses . | . . . . . . . . . . . . . Cargo Convoy Interrupts . | . . . . . . . . . . . . . Stealth | -11 -10 -10 -9 -9 -6 -5 -5 -5 -5 -4 -4 -4 --------- Run | Yrd Mat Sub Rec Scr Fac Fac Upp Upp War Pro Fac Upp Distress Signals 2 | . 1 . . . 1 . . . . . . . Communications Jammed . | . . . . . . . . . . . . . Distress Signals . | . . . . . . . . . . . . . Times Spotted 209 | . 22 21 1 . 44 1 23 6 33 19 31 8 Peak Tracking Total 12 | . 4 4 1 . 4 1 9 6 12 5 8 5 Tactical Retreats 29 | . 1 3 . . 8 . 3 3 1 5 4 1 Traps | -11 -10 -10 -9 -9 -6 -5 -5 -5 -5 -4 -4 -4 ------- Run | Yrd Mat Sub Rec Scr Fac Fac Upp Upp War Pro Fac Upp Traps Triggered 6 | . 3 3 . . . . . . . . . . Indirectly . | . . . . . . . . . . . . . Trap Hack Attempts . | . . . . . . . . . . . . . Triggered . | . . . . . . . . . . . . . Disarmed . | . . . . . . . . . . . . . Reprogrammed . | . . . . . . . . . . . . . Reused 1 | . . . . . . . . . . 1 . . Traps Extracted . | . . . . . . . . . . . . . Installed 1 | . . . . . . . . . . 1 . . Triggered 1 | . . . . . . . . . . 1 . . Most Traps Carried 1 | . . . . . . . . . . 1 . . Machines | -11 -10 -10 -9 -9 -6 -5 -5 -5 -5 -4 -4 -4 ---------- Run | Yrd Mat Sub Rec Scr Fac Fac Upp Upp War Pro Fac Upp Machines Disabled 16 | . 2 2 . . 11 . . . . . 1 . Max in Single Turn 7 | . 1 1 . . 7 . . . . . 1 . Machines Repaired . | . . . . . . . . . . . . . Machines Dismantled . | . . . . . . . . . . . . . Machines Sabotaged . | . . . . . . . . . . . . . Overloaded Fab Kills . | . . . . . . . . . . . . . Hacking | -11 -10 -10 -9 -9 -6 -5 -5 -5 -5 -4 -4 -4 --------- Run | Yrd Mat Sub Rec Scr Fac Fac Upp Upp War Pro Fac Upp Machines Accessed 40 | . 7 2 7 10 9 2 . . . . 3 . Terminals 13 | . 6 . 3 . 3 1 . . . . . . Fabricators 3 | . . . . . 2 . . . . . 1 . Repair Stations 3 | . . . . . 2 1 . . . . . . Recycling Units 5 | . 1 . 2 . 1 . . . . . 1 . Scanalyzers 1 | . . . . . 1 . . . . . . . Garrison Access 1 | . . . . . . . . . . . 1 . Total Hacks 156 | . 19 12 34 64 19 4 . . . . 4 . Successful 123 | . 9 12 29 64 7 1 . . . . 1 . Failed 33 | . 10 . 5 . 12 3 . . . . 3 . Catastrophic 5 | . . . . . 4 . . . . . 1 . Database Lockouts . | . . . . . . . . . . . . . Manual 5 | . . . 1 . 1 2 . . . . 1 . Terminals 36 | . 18 . 8 . 7 3 . . . . . . Fabricators 5 | . . . . . 4 . . . . . 1 . Repair Stations 5 | . . . . . 4 1 . . . . . . Recycling Units 5 | . 1 . 2 . 1 . . . . . 1 . Scanalyzers 3 | . . . . . 3 . . . . . . . Garrison Access 2 | . . . . . . . . . . . 2 . Terminal Hacks 115 | . 8 12 27 64 3 1 . . . . . . Record 101 | . . 11 25 63 1 1 . . . . . . Robot Analysis 1 | . 1 . . . . . . . . . . . Prototype ID Bank 1 | . . . 1 . . . . . . . . . Branch Access Points 1 | . 1 . . . . . . . . . . . Alert Level 2 | . 2 . . . . . . . . . . . Locate Traps 2 | . 1 . . . 1 . . . . . . . Dispatch Records 1 | . . . . . 1 . . . . . . . Patrol Status 1 | . 1 . . . . . . . . . . . Transport Status 1 | . . . 1 . . . . . . . . . Zone Layout 2 | . 2 . . . . . . . . . . . Proto ID Catalog 2 | . . 1 . 1 . . . . . . . . Fabricator Hacks 1 | . . . . . 1 . . . . . . . Network Status 1 | . . . . . 1 . . . . . . . Repair Station Hacks 2 | . . . . . 2 . . . . . . . Scan Component 2 | . . . . . 2 . . . . . . . Recycling Unit Hacks 3 | . 1 . 2 . . . . . . . . . Process 1 | . 1 . . . . . . . . . . . Report Inventory 2 | . . . 2 . . . . . . . . . Scanalyzer . | . . . . . . . . . . . . . Garrison Access Hacks . | . . . . . . . . . . . . . Unauthorized Hacks 2 | . . . . . 1 . . . . . 1 . Terminals . | . . . . . . . . . . . . . Fabricators . | . . . . . . . . . . . . . Repair Stations . | . . . . . . . . . . . . . Recycling Units 2 | . . . . . 1 . . . . . 1 . Fedlink 1 | . . . . . 1 . . . . . . . Scrapoids 1 | . . . . . . . . . . . 1 . Scanalyzers . | . . . . . . . . . . . . . Garrison Access . | . . . . . . . . . . . . . Data Cores Recovered . | . . . . . . . . . . . . . Used . | . . . . . . . . . . . . . Hacking Detections 19 | . 5 . 3 . 8 2 . . . . 1 . Full Trace Events 3 | . 1 . . . 1 . . . . . 1 . Feedback Events . | . . . . . . . . . . . . . Feedback Blocked . | . . . . . . . . . . . . . Robot Schematics Acquired . | . . . . . . . . . . . . . Robots Built . | . . . . . . . . . . . . . Authchips . | . . . . . . . . . . . . . Time . | . . . . . . . . . . . . . Total Robot Build Rating . | . . . . . . . . . . . . . Part Schematics Acquired . | . . . . . . . . . . . . . Parts Built . | . . . . . . . . . . . . . Authchips . | . . . . . . . . . . . . . Time . | . . . . . . . . . . . . . Total Part Build Rating . | . . . . . . . . . . . . . Parts Repaired . | . . . . . . . . . . . . . Time . | . . . . . . . . . . . . . Parts Recycled . | . . . . . . . . . . . . . Recycled Matter 146 | . 146 . . . . . . . . . . . Retrieved Matter . | . . . . . . . . . . . . . Retrieved Components . | . . . . . . . . . . . . . Parts Scanalyzed . | . . . . . . . . . . . . . Part Schematics Acquired . | . . . . . . . . . . . . . Parts Damaged . | . . . . . . . . . . . . . Bothacking | -11 -10 -10 -9 -9 -6 -5 -5 -5 -5 -4 -4 -4 ------------ Run | Yrd Mat Sub Rec Scr Fac Fac Upp Upp War Pro Fac Upp Used RIF Installer . | . . . . . . . . . . . . . Robots Hacked 1 | . . . . . 1 . . . . . . . Non-combat . | . . . . . . . . . . . . . Combat 1 | . . . . . 1 . . . . . . . Robot Hacks Applied 1 | . . . . . 1 . . . . . . . parse_system 1 | . . . . . 1 . . . . . . . Relay Couplers Released . | . . . . . . . . . . . . . Fabnet Peak Effective % . | . . . . . . . . . . . . . Robots Rewired . | . . . . . . . . . . . . . Allies Hacked . | . . . . . . . . . . . . . Hacks Repelled . | . . . . . . . . . . . . . Allies | -11 -10 -10 -9 -9 -6 -5 -5 -5 -5 -4 -4 -4 -------- Run | Yrd Mat Sub Rec Scr Fac Fac Upp Upp War Pro Fac Upp Total Allies 8 | . . . . . 2 . . 1 . . 5 . Largest Group 5 | . . . . . 1 . . 1 . . 5 . Highest-Rated Group 235 | . . . . . 28 . . 40 . . 235 . Highest-Rated Ally 47 | . . . . . 28 . . 40 . . 47 . Total Orders . | . . . . . . . . . . . . . Ally Attacks 24 | . . . . . . . . . . . 24 . Total Damage 612 | . . . . . . . . . . . 612 . Kills 3 | . . . . . . . . . . . 3 . Allies Corrupted . | . . . . . . . . . . . . . Allies Melted 2 | . . . . . . . . . 1 . 1 . Intel | -11 -10 -10 -9 -9 -6 -5 -5 -5 -5 -4 -4 -4 ------- Run | Yrd Mat Sub Rec Scr Fac Fac Upp Upp War Pro Fac Upp Active Infowar (turns) 3205 | . . . . . . . . 366 1058 959 495 327 Sensors 940 | . . . . . . . . . . 940 . . Traps 271 | . . . . . . . . . . . 60 211 Decoding 3188 | . . . . . . . . 366 1058 942 495 327 Cloaking 32 | . . . . . . . . . . . 32 . Robot Analysis Total 1 | . 1 . . . . . . . . . . . Derelict Logs Recovered 6 | . . 1 . 2 . . . 1 . 2 . . Drone Launches . | . . . . . . . . . . . . . Drone Recoveries . | . . . . . . . . . . . . . Decoded 0b10 Intel 7 | . . . . . . . . . . . 7 . Traps 6 | . . . . . . . . . . . 6 . Garrisons 1 | . . . . . . . . . . . 1 . Exploration | -11 -10 -10 -9 -9 -6 -5 -5 -5 -5 -4 -4 -4 ------------- Run | Yrd Mat Sub Rec Scr Fac Fac Upp Upp War Pro Fac Upp Turns Passed 13591 | 66 1325 2545 403 2280 2110 322 1232 387 1058 959 577 327 Spaces Moved 8480 | 44 742 1252 271 1628 1260 176 538 392 561 687 595 334 Core 174 | 2 . . . . . . 28 . . 2 25 117 Treads 864 | . . . . . . . 131 162 454 . 56 61 Legs 6658 | 42 742 1252 271 1628 1260 176 354 . 107 685 141 . Wheels 205 | . . . . . . . . . . . 49 156 Hover 69 | . . . . . . . . . . . 69 . Flight 510 | . . . . . . . 25 230 . . 255 . Fastest Speed 29 | 50 120 120 140 140 90 120 35 35 120 120 29 50 Average Speed 134 | 116 146 170 140 140 115 153 191 92 152 120 71 82 Slowest Speed 900 | 120 190 190 140 140 196 190 900 160 160 150 190 160 Overloaded Moves . | . . . . . . . . . . . . . Propulsion Burnouts . | . . . . . . . . . . . . . Robots Hopped 2 | . . . . . 1 . . . . . 1 . Potential Cave-ins . | . . . . . . . . . . . . . Cave-ins Triggered . | . . . . . . . . . . . . . Exploration Rate (%) 50 | 4 94 75 52 92 23 6 74 61 52 80 8 36 Regions Visited 12 Branch Regions 8 Pre-discovered Areas 2 | . . . . 1 . . . . . 1 . . Known Exits Taken 8 | . 1 . . . 1 1 1 1 1 1 1 . Unknown Exits Taken 4 | 1 . 1 1 1 . . . . . . . . Scrap Searched 19 | . . 12 . . . . 1 3 . 3 . . Spaces Dug 3 | . 3 . . . . . . . . . . . Terrain Destroyed 218 | . 78 1 . . 95 15 19 . . . 9 1 Melee . | . . . . . . . . . . . . . Projectile 22 | . . 1 . . 8 . 3 . . . 9 1 AOE 193 | . 78 . . . 86 14 15 . . . . . Terrain Rammed . | . . . . . . . . . . . . . Walls Destroyed . | . . . . . . . . . . . . . Machines Disabled . | . . . . . . . . . . . . . Actions | -11 -10 -10 -9 -9 -6 -5 -5 -5 -5 -4 -4 -4 --------- Run | Yrd Mat Sub Rec Scr Fac Fac Upp Upp War Pro Fac Upp Total 9994 | 55 936 1548 287 1629 1643 214 655 417 741 777 708 384 Wait 700 | . 133 173 13 . 78 . 26 . 152 52 30 43 Move 8464 | 43 741 1251 270 1627 1257 175 537 391 560 686 592 334 Hop 2 | . . . . . 1 . . . . . 1 . Pick Up 149 | 6 11 19 . 1 57 8 10 7 3 5 21 1 Fast Attach 52 | 6 6 5 . . 10 2 5 9 6 . 3 . Attach 101 | . . 6 . . 43 4 18 1 2 5 19 3 Detach 10 | . . . . . 2 3 5 . . . . . Swap 35 | . 4 8 . . 15 3 1 . 2 2 . . Drop 106 | . 12 23 . 1 28 9 9 9 5 4 4 2 Fire 365 | . 29 63 4 . 148 10 44 . 11 22 33 1 Melee . | . . . . . . . . . . . . . Ram 1 | . . . . . . . . . . . 1 . Kick 4 | . . . . . 4 . . . . . . . Crush 4 | . . . . . . . . . . . 4 . Escape Stasis . | . . . . . . . . . . . . . Rewire . | . . . . . . . . . . . . . Trap 1 | . . . . . . . . . . 1 . . Miscellaneous . | . . . . . . . . . . . . . Route ------- -11/Scrapyard -10/Materials (discovered 6 exits: *Mat x3 / *Min x2 / *Sub) -10/Subcaves (discovered 3 exits: [*Mat x2] / *Rec) -9/Recycling (discovered 2 exits: [*Fac] / *Scr) -9/Scraptown (discovered 2 exits: *Fac x2) -6/Factory -5/Factory -5/Upper Caves -5/Upper Caves -5/Warlord -4/Proximity Caves -4/Factory -4/Upper Caves History --------- Turn | Location | Event 8 | -11/Scrapyard | Discovered new exit (range 15) 67 | -11/Scrapyard | Entered Materials 292 | -10/Materials | Discovered new exit (range 9) 304 | -10/Materials | Identified exit to Materials 339 | -10/Materials | Build established: Mutant 606 | -10/Materials | Discovered new exit (range 7) 612 | -10/Materials | Identified exit to Mines 925 | -10/Materials | Discovered exit to Mines (range 7) 1138 | -10/Materials | Discovered exit to Materials (range 11) 1242 | -10/Materials | Discovered exit to Materials (range 13) 1381 | -10/Materials | Discovered new exit (range 7) 1390 | -10/Materials | Identified exit to Subcaves 1392 | -10/Materials | Entered Subcaves 1420 | -10/Subcaves | Shifting Twisted Machinery released Sub. Beam Cannon 1447 | -10/Subcaves | Shifting Twisted Machinery released Scrap Shield 1781 | -10/Subcaves | Visited 4L-MR0's lab 1880 | -10/Subcaves | Found Power Bank 2180 | -10/Subcaves | Discovered new exit (range 7) 2312 | -10/Subcaves | Visited Clippyterm 2318 | -10/Subcaves | Learned Research security intel 2807 | -10/Subcaves | Shifting Twisted Machinery released Battle Rifle 2885 | -10/Subcaves | Shifting Twisted Machinery released Mak. Flight Unit 3071 | -10/Subcaves | Core integrity fell below 50% 3126 | -10/Subcaves | Learned 2 Materials zone layouts 3443 | -10/Subcaves | Shifting Twisted Machinery released Mak. Thermal Plating 3444 | -10/Subcaves | Shifting Twisted Machinery released Mak. Power Source 3509 | -10/Subcaves | Discovered new exit (range 7) 3860 | -10/Subcaves | Discovered new exit (range 13) 3937 | -10/Subcaves | Entered Recycling 3938 | -9/Recycling | Met a Zionite searching for Scraptown 4193 | -9/Recycling | Core integrity fell below 20% 4206 | -9/Recycling | Build established: Derelict-Mutant 4207 | -9/Recycling | Discovered new exit (range 16) 4259 | -9/Recycling | Scanned before Scraplab entrance 4302 | -9/Recycling | Entered Scraplab 4315 | -9/Recycling | Discovered new exit (range 3) 4340 | -9/Recycling | Entered Scraptown 4389 | -9/Scraptown | Visited Shadow of the Wyrm 4417 | -9/Scraptown | Visited Assassins FH 4490 | -9/Scraptown | Visited Awakened 4809 | -9/Scraptown | Visited Red Mages 4881 | -9/Scraptown | Visited The Evicted 4947 | -9/Scraptown | Scanned Subdweller tech in exchange for log data 4951 | -9/Scraptown | Learned 8 Factory zone layouts 4952 | -9/Scraptown | Learned location of Quarantine (-3) 4973 | -9/Scraptown | Discovered new exit (range 5) 5297 | -9/Scraptown | Visited Symbiants 5334 | -9/Scraptown | Visited Cyclists 5383 | -9/Scraptown | Visited UFD Registry 5383 | -9/Scraptown | Registered with UFD as "Dualthruster" 5410 | -9/Scraptown | Entered Cyclist Reading Room 5539 | -9/Scraptown | Visited Infowarlord's Domain 5575 | -9/Scraptown | Visited Science Guys 5634 | -9/Scraptown | Visited Junk Repository 5651 | -9/Scraptown | Visited Scrap Suit Storage 5704 | -9/Scraptown | Delivered Scrap Shield to a Scientist 5784 | -9/Scraptown | Visited Abandonware Association 5803 | -9/Scraptown | Learned abandonware demo "REVENGE.EXE" 5876 | -9/Scraptown | Visited Observation Area 5934 | -9/Scraptown | Visited LU-1G1's Boring Crew 6013 | -9/Scraptown | Visited Botcube Research 6024 | -9/Scraptown | Found Botcube 6420 | -9/Scraptown | Discovered new exit (range 5) 6519 | -9/Scraptown | Met Optimus 6519 | -9/Scraptown | Accepted into 0bPrime 6614 | -9/Scraptown | Civil war broke out across Scraptown 6620 | -9/Scraptown | Entered Factory 6620 | -6/Factory | Evolved 8 slots: Power x1, Propulsion x2, Utility x4, Weapon x1 6782 | -6/Factory | Botcube activated 6786 | -6/Factory | Botcube completed mutation into core form (unarmed). 6916 | -6/Factory | Build established: Derelict-Tank 7322 | -6/Factory | Lost 8 parts (2p1n3u2w) 7557 | -6/Factory | Lost 7 parts (2n4u1w) 7656 | -6/Factory | Found Botcube 8001 | -6/Factory | Found Powered Armor 8221 | -6/Factory | Botcube activated 8230 | -6/Factory | Found Botcube 8339 | -6/Factory | Build established: Scavenger-Gunner 8450 | -6/Factory | Core integrity fell below 50% 8484 | -6/Factory | Lost 6 parts (1p2n1u2w) 8543 | -6/Factory | Loaded intel: 8 recycling unit locations 8690 | -6/Factory | Discovered new exit (range 15) 8704 | -6/Factory | Lost 4 parts (1p2n1w) 8726 | -6/Factory | Identified exit to Factory 8730 | -6/Factory | Entered another Factory area 8730 | -5/Factory | Evolved 2 slots: Propulsion x1, Utility x1 8986 | -5/Factory | Discovered new exit (range 7) 9045 | -5/Factory | Identified exit to Upper Caves 9052 | -5/Factory | Entered Upper Caves 9054 | -5/Upper Caves | UFD Scientist delivered a prototype 9066 | -5/Upper Caves | Found Prototype Protection 9066 | -5/Upper Caves | Identified Enh. Scrap Shield 9414 | -5/Upper Caves | Lost 5 parts (1p2n1u1w) 9851 | -5/Upper Caves | Lost 6 parts (1p3n1u1w) 10021 | -5/Upper Caves | System corruption reached 10% 10234 | -5/Upper Caves | Attracted the attention of an 0b10 outpost 10281 | -5/Upper Caves | Discovered new exit (range 6) 10283 | -5/Upper Caves | Identified exit to Upper Caves 10284 | -5/Upper Caves | Entered another Upper Caves area 10286 | -5/Upper Caves | Learned Factory terminal intel 10303 | -5/Upper Caves | Lost 4 parts (1n2u1w) 10341 | -5/Upper Caves | Attracted the attention of an 0b10 checkpoint 10392 | -5/Upper Caves | Found DCF Scrap (13 items) 10429 | -5/Upper Caves | Botcube activated 10439 | -5/Upper Caves | Botcube completed mutation into flying form, armed with 1 cannon. 10659 | -5/Upper Caves | Discovered new exit (range 7) 10667 | -5/Upper Caves | Identified exit to Warlord 10671 | -5/Upper Caves | Entered Warlord 10688 | -5/Warlord | Build established: Derelict-Mutant 10729 | -5/Warlord | System corruption cleaned by Quarantine Array 10917 | -5/Warlord | Discovered new exit (range 14) 11138 | -5/Warlord | Rebuked by Warlord 11163 | -5/Warlord | Warlord's base attacked by MAIN.C 11513 | -5/Warlord | Warlord forces counterattacked 11550 | -5/Warlord | Spotted Striker 11570 | -5/Warlord | Spotted Striker 11603 | -5/Warlord | P-70 Sage assimilated allied 5E-7XP(g) 11610 | -5/Warlord | Spotted Executioner 11610 | -5/Warlord | Spotted Striker 11619 | -5/Warlord | Core integrity fell below 50% 11640 | -5/Warlord | Destroyed Striker 11656 | -5/Warlord | Lost 3 parts (1p1n1w) 11664 | -5/Warlord | Spotted B-86 Titan 11665 | -5/Warlord | Spotted Executioner 11666 | -5/Warlord | Lost 14 allies 11727 | -5/Warlord | Identified exit to Proximity Caves 11729 | -5/Warlord | Entered Proximity Caves 11739 | -4/Proximity Caves | Lost 8 allies 11844 | -4/Proximity Caves | Build established: Scavenger-Mutant 11966 | -4/Proximity Caves | Spotter reported a threat 12019 | -4/Proximity Caves | Spotter reported a threat 12072 | -4/Proximity Caves | Spotter reported a threat 12072 | -4/Proximity Caves | Spotter reported a threat 12125 | -4/Proximity Caves | Spotter reported a threat 12125 | -4/Proximity Caves | Spotter reported a threat 12178 | -4/Proximity Caves | Spotter reported a threat 12374 | -4/Proximity Caves | Spotter reported a threat 12445 | -4/Proximity Caves | Build established: Scavenger-Gunner 12457 | -4/Proximity Caves | Learned location of 1 exit from Research 12463 | -4/Proximity Caves | Spotted B-86 Titan 12531 | -4/Proximity Caves | Core integrity fell below 20% 12588 | -4/Proximity Caves | Lost 5 parts (2n1u2w) 12605 | -4/Proximity Caves | Spotter reported a threat 12668 | -4/Proximity Caves | Discovered new exit (range 15) 12686 | -4/Proximity Caves | Attracted the attention of an 0b10 checkpoint 12686 | -4/Proximity Caves | Identified exit to Factory 12688 | -4/Proximity Caves | Entered Factory 12688 | -4/Factory | Evolved 2 slots: Power x1, Utility x1 12689 | -4/Factory | Loaded intel: 25 terminal locations 12843 | -4/Factory | Build established: Hacker-Mutant 12938 | -4/Factory | Search patrols dispatched 12994 | -4/Factory | Lost 7 parts (1p2n3u1w) 13082 | -4/Factory | Core integrity fell below 50% 13100 | -4/Factory | Lost 6 parts (1n4u1w) 13160 | -4/Factory | Scrapoid reinforcements arrived 13188 | -4/Factory | Search patrols dispatched 13203 | -4/Factory | Lost 3 allies 13212 | -4/Factory | Discovered new exit (range 15) 13264 | -4/Factory | Identified exit to Upper Caves 13265 | -4/Factory | Entered Upper Caves 13306 | -4/Upper Caves | Spotted B-86 Titan 13462 | -4/Upper Caves | Lost 3 parts (1p1n1w) 13528 | -4/Upper Caves | Core integrity fell below 20% 13592 | -4/Upper Caves | Destroyed by S-27 Virus with Autogun Last Messages --------------- 13518_ B-86 Titan activates siege mode. 13521_ Slug penetrates Wall. 13521_ Lrn. Phase Cannon destroyed. 13526_ Critical hit (Meltdown: +360). 13532_ Dropped Imp. Heavy Treads. 13533_ Dropped Imp. Treads. 13537_ Penetrated by Slug. 13538_ B-86 Titan exits siege mode. 13551_ Acquired 1 matter. 13551_ Acquired 3 matter. 13552_ Acquired 4 matter. 13552_ Acquired 1 matter. 13554_ Acquired 4 matter. 13556_ Acquired 3 matter. 13557_ Adv. Trap Scanner destroyed. 13560_ Acquired 1 matter. 13562_ Acquired 3 matter. 13571_ Acquired Unknown Wheel. 13575_ 2A-EMT(k) breaks down the debris. 13579_ 2A-EMT(k) destroyed. Map ----- +----------------------------------------------------+ | | | | | | | | | | | | | ?????????????????????????????????????????????????? | | ?????????????????????????????????????????????????? | | ?????????????????????????????????????????????????? | | ?????????????????????????????????????????????????? | | ?????????????????????????????????????????????????? | | ?????????????????????????????????????????????????? | | ?????????????????????????????????????????????????? | | ?????????????????????????????????????????????????? | | ?????????????????????????????????????????????????? | | ?????????????????????????????????????????????????? | | ?????????????????????????????????????????????????? | | ?????????????????????????????????????????????????? | | ?????????????????????????????????????????????????? | | ?????????????????????????????????????????????????? | | ???????????????????????????????????####????????### | | ????????????????##???????????????### #??????? # | | ???????????????## #####????????## #?????? | | ???????????????# #?####### # #?????# | | ?????????????????# ## s ##??## ! | | ?????????????????# @ # #### !% | | ?????????????????# #### % ss #### | | ??????????????######### %#??# # # #??? | | ?????????????## #????# #??# #### #??? | | ?????????????# %#???# ## ##?# # #??# ####### | | ?????????????# #???###?# ###### #??###??## | | ????????????## #???????## #???# #??????## | | ???????????## #######?# #???# #??????#" # | | ???????????# % ## #### % ##??# #??????# # | | ??????????## ## %### % #??# #??????# | | ??????????# % % % #### #??????# % | | ??????????# % % #??????# | | ??????????## % % #??????# | | ???????????# % %## ###################" | | ???????????# % %### #????????# # | | ???????????#% ## #### ####?????# | | ???????????## ### #?# ####### ####" | | ????????????### #?# ### ## # #???#### | | ??????????????####?## ### ## ##?????? | | ????????????????????###?## "" #????? | | ?????????????????????????## #### """" #???? | | ??????????????????????????## #??# """ #???? | | ???????????????????????????# ??# " #???? | | ??????????????????????????? ??# " ??? | | ??????????????????????????# ??# """" # ?? | +----------------------------------------------------+ Best States ------------- Heat Dissipation 78 Energy Generation 38 Energy Capacity 360 Matter Stores 400 Matter Capacity 400 Sight Range 16 Robot Scan Range 19 Terrain Scan Density 110 Cloak Strength 2 Additional Mass Support 12 Armor Coverage 1025 Resistance: TH 10 Propulsion Shielding 66 Evasion (%) 64 Targeting Accuracy 10 Target Analysis 6 Recoil Reduction 3 Offensive Hacking 10 Defensive Hacking 10 Item Schematics ----------------- None Robot Schematics ------------------ None Fabricated ------------ Nothing Repaired ---------- Nothing Alien Tech Used ----------------- None Achievements -------------- A Powerful Ally? Brute Force Charge!!! Close Call I Spy Universal Adapter Challenges ------------ None Game ------ Seed ThrusterFieldthrustMultitool Manual? 0 Play Time 03:18:22 Cumulative 21.7 hours Start 2025.07.15 @ 07:30:20 End 2025.07.16 @ 10:02:35 Sessions 3 Manual Loads 0 Difficulty Rogue Special Mode None Game No. 16 Rogue 16 Adventurer 0 Explorer 0 Win Type - Total 0 Types 0/0/0/0/0/0/0/0/0/0 Lore% 21 Gallery% 20 Achievement% 18 Wizard Run 0 Options --------- Layout 1 ASCII 0 Keyboard 0 Movement Mouse Keybinds 0 Fullscreen 1 Font 24/Smallcaps Map View 50x35 Zoom Use 0% Tactical HUD 1 Map Filters NONE Filters NONE Steam 1 RUN: 81f69ce5-fccf-49fb-beba-3ff74f8d8500